bitfinex-derivatives/quotes_SOLF0:USTF0_20250606
["timestamp","ask_amount","ask_price","bid_price","bid_amount"]
[1749204273471,3.07569774,147.77,147.76,0.04355091]
[1749204273669,12.78120725,147.77,147.76,0.04355091]
[1749204273873,10.72276654,147.77,147.73,6.7654]
[1749204274078,3.07569774,147.75,147.73,6.7654]
[1749204274280,3.07569774,147.75,147.71,3.07569774]
[1749204274680,3.07569774,147.75,147.73,6.7653]
[1749204274876,3.12223724,147.75,147.73,6.81113672]
[1749204276884,3.07569774,147.74,147.73,6.81113672]
[1749204277189,0.0465395,147.75,147.73,6.81113672]
[1749204277986,3.95e-05,147.75,147.74,6.7652]
[1749204278189,4.80393555,147.83,147.74,38.66393555]
[1749204278487,16.92789675,147.82,147.78,6.7632]
[1749204278679,6.7618,147.82,147.76,4.80393555]
[1749204278878,4.70982899,147.81,147.76,4.80393555]
[1749204279185,0.04355845,147.8,147.77,0.05113753]
[1749204280589,0.04355845,147.8,147.79,6.763]
[1749204299207,2.99640897,147.8,147.79,6.763]
[1749204299401,2.99641141,147.8,147.79,6.763]
[1749204299602,2.99640026,147.8,147.79,6.763]
[1749204299802,2.99662024,147.8,147.79,6.763]
[1749204300102,0.04355845,147.8,147.79,6.763]
[1749204300306,6.80605845,147.8,147.78,6.7632]
[1749204300605,0.04355845,147.8,147.77,3.12520328]
[1749204300803,0.04355845,147.8,147.79,6.763]
[1749204301000,2.99508745,147.8,147.79,6.763]
[1749204301200,0.04355845,147.8,147.79,6.763]
[1749204301504,2.99590563,147.8,147.79,6.763]
[1749204301899,2.99617884,147.8,147.79,6.763]
[1749204302102,2.99617883,147.8,147.79,6.763]
[1749204302609,0.04355845,147.8,147.79,6.763]
[1749204302795,2.99615882,147.8,147.79,6.763]
[1749204304008,2.99675425,147.8,147.79,6.763]
[1749204304204,2.99669902,147.8,147.79,6.763]
[1749204304502,0.04355845,147.8,147.79,6.763]
[1749204304706,2.99572844,147.8,147.79,6.763]
[1749204304906,2.99573308,147.8,147.79,6.763]
[1749204305100,2.99573109,147.8,147.79,6.763]
[1749204305303,2.99565978,147.8,147.79,6.763]
[1749204306097,2.99565915,147.8,147.79,6.763]
[1749204306806,2.99560631,147.8,147.79,6.763]
[1749204307907,2.99144271,147.8,147.79,9.83706575]
[1749204308209,0.04355845,147.8,147.79,9.83706575]
[1749204310006,10.09881026,147.84,147.82,6.7615]
[1749204310209,2.94801144,147.83,147.82,3.07406575]
[1749204310612,2.94801144,147.83,147.82,6.7616]
[1749204311410,0.03820614,147.84,147.82,6.7616]
[1749204312110,6.79890614,147.84,147.81,9.88366007]
[1749204312409,2.88739317,147.83,147.81,6.80959432]
[1749204312610,9.87297189,147.84,147.81,9.88366007]
[1749204313201,2.89622669,147.83,147.81,9.88366007]
[1749204313400,9.87297189,147.84,147.81,9.88366007]
[1749204313710,2.89621517,147.83,147.81,9.88366007]
[1749204314011,6.7611,147.83,147.81,9.88366007]
[1749204314211,6.7611,147.83,147.81,6.80959432]
[1749204314410,3.11227189,147.84,147.81,6.80959432]
[1749204314610,9.87317189,147.84,147.81,6.80959432]
[1749204316414,9.87317189,147.84,147.81,9.88366007]
[1749204317816,9.87317189,147.84,147.81,6.80959432]
[1749204319515,9.87317189,147.84,147.82,6.7616]
[1749204320615,2.89629731,147.83,147.82,6.7616]
[1749204321020,2.89606939,147.83,147.82,6.7616]
[1749204321318,2.89593113,147.83,147.82,6.7616]
[1749204321720,9.87297189,147.84,147.82,6.7616]
[1749204321922,2.89233262,147.83,147.82,6.7616]
[1749204322112,9.87297189,147.84,147.82,6.7616]
[1749204322517,2.892559,147.83,147.82,6.7616]
[1749204322719,9.87297189,147.84,147.82,6.7616]
[1749204322921,2.88970803,147.83,147.82,6.7616]
[1749204323720,2.89481844,147.83,147.82,6.7616]
[1749204324017,9.87297189,147.84,147.82,6.7616]
[1749204324218,2.89371979,147.83,147.82,6.7616]
[1749204324418,9.87297189,147.84,147.82,6.7616]
[1749204324614,2.89352981,147.83,147.82,6.7616]
[1749204325424,2.89290721,147.83,147.82,6.7616]
[1749204325823,2.89279682,147.83,147.82,6.7616]
[1749204326125,9.87297189,147.84,147.82,6.7616]
[1749204326320,2.89693822,147.83,147.82,6.7616]
[1749204326525,2.89691205,147.83,147.82,6.7616]
[1749204326719,2.89691676,147.83,147.82,6.7616]
[1749204327123,2.89550219,147.83,147.82,6.7616]
[1749204327322,2.8955763,147.83,147.82,6.7616]
[1749204327522,2.89626446,147.83,147.82,6.7616]
[1749204327826,9.87297189,147.84,147.82,6.7616]
[1749204328126,3.07406575,147.9,147.83,3.07406575]
[1749204328329,3.07406575,147.9,147.86,3.07406575]
[1749204328330,13.01601852,147.89,147.86,3.07406575]
[1749204328523,7.57601789,147.88,147.87,6.759]
[1749204328828,2.89760673,147.88,147.87,6.759]
[1749204329027,5.97213683,147.88,147.87,6.759]
[1749204329222,10.605919,147.88,147.87,6.759]
[1749204329422,10.60591886,147.88,147.87,6.759]
[1749204329825,10.60748929,147.88,147.87,6.759]
[1749204330026,5.91028075,147.88,147.87,6.759]
[1749204330921,5.90703785,147.88,147.87,6.759]
[1749204331119,5.90703785,147.88,147.86,0.04923238]
[1749204331319,7.76409467,147.87,147.86,0.04923238]
[1749204331521,10.59499862,147.87,147.86,0.04923238]
[1749204331726,33.8,147.92,147.86,3.12329813]
[1749204331920,3.07406575,147.92,147.89,3.07406575]
[1749204332129,3.07406575,147.92,147.89,3.12472402]
[1749204332719,3.07406575,147.92,147.89,9.88292402]
[1749204333222,3.07406575,147.92,147.89,3.12472402]
[1749204333528,395.67406,147.99,147.91,3.07406575]
[1749204333731,3.07406575,147.95,147.94,0.04691352]
[1749204335930,9.82966575,147.95,147.94,0.04691352]
[1749204338130,4.9820428,147.97,147.94,0.04691352]
[1749204338331,3.07406575,147.96,147.94,0.04691352]
[1749204338533,40.5546,147.98,147.95,6.7556]
[1749204338833,3.07406575,147.96,147.94,0.04691352]
[1749204339231,6.755,147.97,147.94,0.04691352]
[1749204339532,6.755,147.97,147.94,6.80271352]
[1749204341222,6.7552,147.96,147.94,6.80271352]
[1749204342229,6.7549,147.97,147.94,6.80271352]
[1749204342529,136.00343648,148.06,147.95,4.79397764]
[1749204342733,11.54737764,148.0,147.99,0.04699972]
[1749204343231,6.7534,148.0,147.99,0.04699972]
[1749204343425,11.54737764,148.0,147.99,0.04699972]
[1749204344034,6.7534,148.0,147.99,0.04699972]
[1749204359146,9.8203721,148.0,147.99,0.04699972]
[1749204367543,11.74338565,148.01,147.99,0.04699972]
[1749204367847,9.8201721,148.01,147.99,6.80059972]
[1749204368049,3.0669721,148.01,147.99,0.04699972]
[1749204368240,33.76,148.03,148.0,3.0669721]
[1749204368241,36.8269721,148.03,148.0,3.0669721]
[1749204368444,36.8269721,148.03,148.01,6.7529]
[1749204368646,36.8269721,148.03,148.0,3.0669721]
[1749204368647,4.98974935,148.02,148.0,3.0669721]
[1749204368846,4.98974935,148.01,148.0,3.0669721]
[1749204369037,4.98974935,148.01,148.0,9.8200721]
[1749204369239,5.00535581,148.01,148.0,3.0669721]
[1749204369439,2.79269082,148.03,148.0,3.0669721]
[1749204369643,3.0669721,148.05,148.02,6.7522]
[1749204369845,2.79359969,148.04,148.02,6.80428691]
[1749204370049,3.0669721,148.05,148.02,6.80428691]
[1749204370246,14.55304298,148.04,148.02,6.80428691]
[1749204370452,5.00769994,148.03,148.02,6.80428691]
[1749204370844,6.7518,148.04,148.02,6.80428691]
[1749204371347,6.7518,148.04,148.02,0.05208691]
[1749204371539,6.752,148.03,148.02,0.05208691]
[1749204371741,9.8189721,148.03,148.02,0.05208691]
[1749204372248,11.58049011,148.03,148.02,0.05208691]
[1749204372548,3.0669721,148.05,148.02,6.80428691]
[1749204372751,4.82813265,148.04,148.02,6.80428691]
[1749204373049,3.0669721,148.05,148.02,9.87125901]
[1749204373248,4.83061529,148.04,148.02,9.87125901]
[1749204373445,3.0669721,148.03,148.02,0.05208691]
[1749204373651,10.72269419,148.03,148.02,0.05208691]
[1749204374147,17.47496782,148.03,148.02,0.05208691]
[1749204374539,17.48371632,148.03,148.02,0.05208691]
[1749204374739,17.48366386,148.03,148.02,0.05208691]
[1749204374939,14.69241334,148.03,148.02,0.05208691]
[1749204375140,14.6919121,148.03,148.02,0.05208691]
[1749204375339,17.50466384,148.03,148.02,0.05208691]
[1749204376150,22.98106622,148.03,148.02,0.05208691]
[1749204376341,22.98106512,148.03,148.02,0.05208691]
[1749204376539,20.16836737,148.03,148.02,0.05208691]
[1749204376740,22.97936982,148.03,148.02,0.05208691]
[1749204376945,22.97939473,148.03,148.02,0.05208691]
[1749204377251,22.98234574,148.03,148.02,0.05208691]
[1749204377855,16.23874642,148.03,147.97,36.8069721]
[1749204378056,3.0669721,148.01,147.97,36.8069721]
[1749204378354,7.69973526,148.0,147.97,9.8215721]
[1749204378657,4.8745547,147.99,147.97,9.8215721]
[1749204378847,0.04280829,147.99,147.97,9.86455331]
[1749204379248,0.04280829,147.99,147.98,6.7543]
[1749204379448,4.91525576,147.99,147.98,6.7543]
[1749204379648,4.91525576,147.99,147.98,3.0669721]
[1749204379955,0.04280829,147.99,147.98,3.0669721]
[1749204380254,0.04280829,147.99,147.98,9.8212721]
[1749204380453,0.04280829,147.99,147.98,14.3437721]
[1749204382053,0.04280829,147.99,147.98,7.5894721]
[1749204382853,0.04280829,147.99,147.98,14.3437721]
[1749204387556,0.04280829,147.99,147.98,7.5894721]
[1749204388858,6.79660829,147.99,147.97,3.10995331]
[1749204389057,6.79660829,147.99,147.97,0.04298121]
[1749204389759,0.04280829,147.99,147.97,0.04298121]
[1749204389956,0.04280829,147.99,147.97,6.79738121]
[1749204391454,0.04280829,147.99,147.97,9.86435331]
[1749204394164,6.79670829,147.99,147.97,9.86435331]
[1749204394358,0.04280829,147.99,147.97,9.86435331]
[1749204395260,0.04280829,147.99,147.97,3.10995331]
[1749204395557,6.79700829,147.99,147.97,3.10995331]
[1749204396664,6.79700829,147.99,147.97,9.86445331]
[1749204397763,0.04280829,147.99,147.97,9.86445331]
[1749204397959,0.04280829,147.99,147.98,6.7543]
[1749204398155,7.72258375,147.99,147.98,9.8212721]
[1749204398464,5.4695722,148.02,147.98,3.0669721]
[1749204398767,7.68060486,148.01,148.0,3.0669721]
[1749204398955,40.4722,148.03,148.0,9.8200721]
[1749204399161,10.33292617,148.02,148.0,9.8200721]
[1749204399462,4.86812111,148.01,148.0,9.87199283]
[1749204399663,6.7522,148.03,148.0,9.87199283]
[1749204399859,4.86896142,148.02,148.0,9.87199283]
[1749204400060,2.81800744,148.01,148.0,9.87199283]
[1749204400262,2.81798537,148.01,148.0,9.87199283]
[1749204400563,2.81822515,148.01,148.0,9.87199283]
[1749204400753,6.7522,148.03,148.0,9.87199283]
[1749204400958,7.37847579,148.02,148.0,9.87199283]
[1749204401158,2.81817814,148.01,148.0,9.87199283]
[1749204401355,2.81943424,148.01,148.0,9.87199283]
[1749204402364,2.81810703,148.01,148.0,9.87199283]
[1749204402565,2.81789583,148.01,148.0,9.87199283]
[1749204402966,6.7522,148.03,148.0,9.87199283]
[1749204403163,2.82079682,148.02,148.0,9.87199283]
[1749204403359,2.82079682,148.01,148.0,9.87199283]
[1749204403957,2.82025944,148.01,148.0,9.87199283]
[1749204404165,2.81962854,148.01,148.0,9.87199283]
[1749204404367,9.8191721,148.03,148.0,9.87199283]
[1749204404670,2.8198105,148.02,148.0,9.87199283]
[1749204404864,9.8191721,148.03,148.0,9.87199283]
[1749204405064,2.81981063,148.02,148.0,9.87199283]
[1749204405364,9.8191721,148.03,148.0,9.87199283]
[1749204405565,2.81945571,148.02,148.0,9.87199283]
[1749204405765,2.81950088,148.01,148.0,9.87199283]
[1749204405958,2.81993514,148.01,148.0,9.87199283]
[1749204406163,2.81993514,148.01,148.0,3.11889283]
[1749204406363,2.81993514,148.01,148.0,0.05192073]
[1749204406563,2.82007177,148.01,148.0,0.05192073]
[1749204406762,3.0669721,148.02,148.0,0.05192073]
[1749204406961,9.57297761,148.01,148.0,0.05192073]
[1749204407161,2.82007761,148.01,148.0,0.05192073]
[1749204408271,2.82023493,148.01,148.0,0.05192073]
[1749204409370,11.358234,148.01,147.94,33.7]
[1749204409573,3.0669721,147.99,147.95,3.0669721]
[1749204409767,9.8210721,147.99,147.95,3.0669721]
[1749204409972,2.8195784,147.98,147.95,3.0669721]
[1749204410172,9.8210721,147.99,147.95,3.0669721]
[1749204410472,2.87062438,147.98,147.96,6.79845675]
[1749204410671,0.05092544,147.98,147.96,6.79845675]
[1749204412374,0.05092544,147.98,147.96,0.04345675]
[1749204412772,0.05092544,147.98,147.96,6.79845675]
[1749204416579,0.05092544,147.98,147.97,6.7547]
[1749204416781,2.86090156,147.98,147.97,6.7547]
[1749204416982,2.86088192,147.98,147.97,6.7547]
[1749204417180,2.86097549,147.98,147.97,6.7547]
[1749204418480,2.86080468,147.98,147.97,6.7547]
[1749204418680,5.92785005,147.98,147.96,0.04345675]
[1749204418882,2.80993388,147.97,147.96,0.04345675]
[1749204419175,5.87690598,147.97,147.96,0.04345675]
[1749204420081,7.61130984,147.97,147.96,0.04345675]
[1749204420277,5.87553598,147.97,147.96,0.04345675]
[1749204420579,12.63026936,147.97,147.96,0.04345675]
[1749204420986,17.17408709,147.97,147.96,0.04345675]
[1749204421286,12.62991715,147.97,147.96,0.04345675]
[1749204421678,9.8216721,147.97,147.96,0.04345675]
[1749204421987,15.88265663,147.97,147.96,0.04345675]
[1749204422285,15.8825467,147.97,147.96,0.04345675]
[1749204423286,22.6372467,147.97,147.96,0.04345675]
[1749204423487,22.63748195,147.97,147.96,0.04345675]
[1749204423686,22.62702548,147.97,147.96,0.04345675]
[1749204423883,22.6262777,147.97,147.96,0.04345675]
[1749204424083,22.62578486,147.97,147.96,0.04345675]
[1749204424387,22.62506552,147.97,147.96,0.04345675]
[1749204424886,22.62141159,147.97,147.96,0.04345675]
[1749204425387,19.82095994,147.97,147.96,0.04345675]
[1749204425683,18.08316121,147.97,147.96,0.04345675]
[1749204426185,15.86791772,147.97,147.91,33.7]
[1749204426387,3.0669721,147.92,147.91,6.7571]
[1749204427394,5.86175291,147.92,147.91,6.7571]
[1749204427592,3.11758399,147.93,147.92,6.757]
[1749204427986,0.05061189,147.93,147.92,6.757]
[1749204428386,0.05061189,147.93,147.92,9.8239721]
[1749204430385,0.05061189,147.93,147.92,6.757]
[1749204446514,40.4745,147.98,147.95,6.7552]
[1749204446702,33.72,147.98,147.92,4.79447361]
[1749204446907,33.72,147.98,147.96,6.755]
[1749204447411,33.76493104,147.98,147.96,6.80188038]
[1749204450813,40.51923104,147.98,147.96,6.80188038]
[1749204451216,43.58688351,147.98,147.96,6.80188038]
[1749204452813,36.83258351,147.98,147.97,6.7547]
[1749204453016,39.64220288,147.98,147.97,6.7547]
[1749204453816,36.83258351,147.98,147.97,6.7547]
[1749204454016,44.31301627,147.98,147.97,6.7547]
[1749204454217,41.50228866,147.98,147.97,6.7547]
[1749204454410,44.31623671,147.98,147.97,6.7547]
[1749204454610,36.83258351,147.98,147.97,6.7547]
[1749204454816,44.31571719,147.98,147.97,6.7547]
[1749204455118,2.85903439,147.98,147.97,6.7547]
[1749204455514,2.86007956,147.98,147.97,6.7547]
[1749204455715,2.86007956,147.98,147.97,9.82235247]
[1749204455914,2.86030508,147.98,147.97,9.82235247]
[1749204456212,0.04493104,147.98,147.97,9.82235247]
[1749204456412,0.04493104,147.98,147.97,6.7547]
[1749204458615,0.04493104,147.98,147.97,9.82235247]
[1749204458916,7.51024181,148.02,148.01,6.7529]
[1749204459217,7.51043203,148.02,148.0,3.06765247]
[1749204459414,5.41266321,148.03,148.02,6.7524]
[1749204459615,2.81791509,148.03,148.02,6.7524]
[1749204459816,7.45011834,148.03,148.02,6.7524]
[1749204460120,10.51777081,148.03,148.02,6.7524]
[1749204460721,10.51442359,148.03,148.02,6.7524]
[1749204460911,10.51080121,148.03,148.02,6.7524]
[1749204461116,5.8212629,148.03,148.02,6.7524]
[1749204461312,7.44345098,148.03,148.02,6.7524]
[1749204461520,7.44345012,148.03,148.02,6.7524]
[1749204461717,7.44236942,148.03,148.02,6.7524]
[1749204462616,7.44219897,148.03,148.02,6.7524]
[1749204462818,7.45392231,148.03,148.02,6.7524]
[1749204463013,4.68849322,148.03,148.02,6.7524]
[1749204463319,7.45379251,148.03,148.02,6.7524]
[1749204463721,7.45494876,148.03,148.02,6.7524]
[1749204464227,7.45274896,148.03,148.02,6.7524]
[1749204464415,2.76328896,148.03,148.02,6.7524]
[1749204464723,2.76316732,148.03,148.02,6.7524]
[1749204464923,40.4517,148.04,148.02,6.7524]
[1749204466129,33.7,148.04,148.02,6.7524]
[1749204466722,6.26454295,148.09,148.01,33.70427024]
[1749204466916,2.7625951,148.08,148.04,0.04873193]
[1749204467125,4.71711712,148.09,148.05,0.04680087]
[1749204467319,4.71745098,148.09,148.05,0.04680087]
[1749204467622,14.29544093,148.1,148.05,0.04680087]
[1749204467827,11.53871758,148.1,148.07,6.7499]
[1749204468122,4.78961758,148.1,148.05,0.04680087]
[1749204468837,11.53851758,148.1,148.05,0.04680087]
[1749204469124,11.53851758,148.1,148.07,6.7498]
[1749204472025,4.78961758,148.08,148.05,0.04680087]
[1749204472232,33.66,148.07,148.05,0.04680087]
[1749204472426,6.26454295,148.13,148.05,0.04680087]
[1749204472625,41.24047514,148.12,148.08,0.04739853]
[1749204472825,7.64385083,148.11,148.09,0.04741178]
[1749204473024,7.66215563,148.11,148.09,0.04741178]
[1749204473222,6.7488,148.1,148.09,0.04741178]
[1749204477928,33.64,148.1,148.09,0.04741178]
[1749204478532,40.3888,148.1,148.09,0.04741178]
[1749204479230,33.64,148.1,148.09,0.04741178]
[1749204481427,40.3888,148.1,148.09,0.04741178]
[1749204485033,33.64,148.1,148.09,0.04741178]
[1749204486035,33.64,148.1,148.09,6.79671178]
[1749204486236,33.64,148.1,148.09,0.04741178]
[1749204487038,33.64,148.1,148.09,6.79671178]
[1749204487243,6.7486,148.11,148.09,6.79671178]
[1749204487536,40.3886,148.11,148.09,6.79671178]
[1749204488035,6.7486,148.11,148.09,6.79671178]
[1749204488234,38.42961758,148.16,148.1,4.78961758]
[1749204488431,38.42961758,148.16,148.12,0.04905867]
[1749204488628,6.7473,148.14,148.12,0.04905867]
[1749204488828,11.75291638,148.14,148.12,0.04905867]
[1749204489035,38.42961758,148.16,148.12,0.04905867]
[1749204489233,14.63286486,148.15,148.12,0.04905867]
[1749204489441,6.7467,148.15,148.12,0.04905867]
[1749204489641,9.62617292,148.15,148.12,6.79675867]
[1749204489852,6.7468,148.15,148.12,6.79675867]
[1749204490141,6.7472,148.14,148.12,0.04905867]
[1749204491041,33.64,148.18,148.12,4.83867625]
[1749204491238,7.89314616,148.17,148.14,0.05185407]
[1749204491443,7.89314401,148.16,148.14,6.79845407]
[1749204491743,33.64,148.18,148.14,0.05185407]
[1749204491939,6.7465,148.15,148.14,0.05185407]
[1749204494144,11.77960603,148.15,148.14,0.05185407]
[1749204495044,6.7465,148.15,148.14,0.05185407]
[1749204497546,4.78961758,148.15,148.06,4.78961758]
[1749204497745,4.78961758,148.12,148.06,4.78961758]
[1749204497944,4.78961758,148.12,148.09,6.749]
[1749204498145,11.53771758,148.12,148.09,6.749]
[1749204498345,6.7481,148.12,148.09,6.749]
[1749204498545,6.79345458,148.12,148.1,6.7488]
[1749204500748,5.04021375,148.11,148.1,6.7488]
[1749204501050,6.79345458,148.12,148.1,6.7488]
[1749204501747,5.04038672,148.11,148.1,6.7488]
[1749204502247,6.79345458,148.12,148.1,6.7488]
[1749204503048,6.79345458,148.12,148.09,6.79976341]
[1749204503851,5.03932543,148.11,148.09,6.79976341]
[1749204504045,6.79345458,148.12,148.09,6.79976341]
[1749204504649,5.03932631,148.11,148.09,6.79976341]
[1749204504851,6.79345458,148.12,148.09,6.79976341]
[1749204505049,5.01769606,148.11,148.09,6.79976341]
[1749204505250,6.79345458,148.12,148.09,6.79976341]
[1749204505553,11.77147001,148.11,148.09,6.79976341]
[1749204505850,6.7484,148.11,148.09,6.79976341]
[1749204507645,11.58307216,148.12,148.1,6.7487]
[1749204509345,6.7483,148.11,148.09,6.79986341]
[1749204510259,11.58307216,148.12,148.1,6.7488]
[1749204511357,3.06121113,148.11,148.1,6.7488]
[1749204514260,6.79345458,148.12,148.1,6.7488]
[1749204514447,3.06121113,148.11,148.1,6.7488]
[1749204514653,0.04535458,148.12,148.11,6.7483]
[1749204514955,3.10656571,148.12,148.11,6.7483]
[1749204515153,6.28960948,148.19,148.13,6.7471]
[1749204515353,3.06121113,148.15,148.13,6.7471]
[1749204515860,2.88992089,148.14,148.13,6.7471]
[1749204516048,3.06121113,148.15,148.14,6.747]
[1749204516251,5.95090819,148.15,148.14,6.747]
[1749204516653,7.75133995,148.15,148.14,6.747]
[1749204516858,36.90121113,148.16,148.15,6.7465]
[1749204517157,41.59130155,148.16,148.15,6.7465]
[1749204517559,41.59555094,148.16,148.15,6.7465]
[1749204518057,33.84,148.17,148.16,6.7456]
[1749204518259,41.60923397,148.17,148.16,6.7456]
[1749204518559,40.5842,148.21,148.18,6.745]
[1749204518860,10.30424237,148.2,148.18,0.0428542]
[1749204519057,7.76871507,148.19,148.18,0.0428542]
[1749204519259,7.76871507,148.19,148.18,6.7880542]
[1749204519561,45.36411837,148.21,148.18,0.0428542]
[1749204519752,2.89440336,148.2,148.18,6.7877542]
[1749204519953,45.36411837,148.21,148.18,6.7877542]
[1749204520153,40.5842,148.21,148.18,6.7877542]
[1749204520460,6.7443,148.2,148.18,6.7877542]
[1749204520760,33.84,148.21,148.18,0.0428542]
[1749204521060,6.7442,148.2,148.18,0.0428542]
[1749204522058,38.61991837,148.21,148.18,0.0428542]
[1749204522258,11.52461837,148.19,148.18,0.0428542]
[1749204522450,19.23835565,148.19,148.18,0.0428542]
[1749204522960,19.23144838,148.19,148.18,0.0428542]
[1749204523160,14.35623118,148.19,148.18,0.0428542]
[1749204523456,19.25800582,148.19,148.18,0.0428542]
[1749204523657,16.39983595,148.19,148.18,0.0428542]
[1749204523954,19.25802127,148.19,148.18,0.0428542]
[1749204524154,14.38276101,148.19,148.18,0.0428542]
[1749204524360,19.25797356,148.19,148.18,0.0428542]
[1749204525162,19.32210258,148.19,148.18,0.0428542]
[1749204525363,19.32350908,148.19,148.18,0.0428542]
[1749204525660,19.32350781,148.19,148.18,0.0428542]
[1749204526463,14.38416635,148.19,148.18,0.0428542]
[1749204526663,6.7447,148.19,148.18,0.0428542]
[1749204527859,11.52441837,148.2,148.18,0.0428542]
[1749204528263,6.29428066,148.26,148.18,0.0428542]
[1749204528467,12.56587469,148.25,148.18,4.82277257]
[1749204528664,4.77991837,148.25,148.18,4.82277257]
[1749204528858,2.84427153,148.24,148.18,0.0428542]
[1749204529166,6.7432,148.23,148.19,6.7445]
[1749204529364,7.77364522,148.24,148.19,6.7445]
[1749204529560,6.7432,148.23,148.2,6.7442]
[1749204532163,8.3690793,148.32,148.18,4.82277257]
[1749204532463,4.77991837,148.28,148.23,0.04375738]
[1749204532663,4.77991837,148.26,148.23,0.04375738]
[1749204532861,4.77991837,148.24,148.23,0.04375738]
[1749204533062,4.77991837,148.24,148.22,0.04801692]
[1749204533464,33.72,148.25,148.22,0.04801692]
[1749204534463,33.72,148.25,148.23,6.7426]
[1749204535368,40.462,148.25,148.23,6.7426]
[1749204537061,33.72,148.25,148.22,0.04801692]
[1749204538766,40.4623,148.25,148.23,6.7427]
[1749204539768,33.72,148.25,148.23,6.7427]
[1749204540467,33.7,148.28,148.22,4.82793529]
[1749204540864,40.4408,148.28,148.26,6.7415]
[1749204541172,40.4408,148.28,148.26,6.78630552]
[1749204542074,33.7,148.28,148.26,6.78630552]
[1749204542767,40.4406,148.28,148.26,0.04480552]
[1749204543470,33.7,148.3,148.26,0.04480552]
[1749204544573,40.4398,148.3,148.27,6.741]
[1749204545165,6.7398,148.3,148.28,6.7406]
[1749204546368,33.7,148.31,148.26,0.04480552]
[1749204546970,4.77991837,148.32,148.27,6.7406]
[1749204547170,33.7,148.31,148.26,0.04480552]
[1749204547569,33.7,148.31,148.26,6.78610552]
[1749204547870,33.7,148.31,148.26,0.04480552]
[1749204548062,6.74,148.3,148.27,6.7408]
[1749204548262,33.7,148.31,148.27,6.7408]
[1749204548668,33.7,148.31,148.26,6.78630552]
[1749204549071,6.7406,148.29,148.26,6.78630552]
[1749204549275,33.7,148.31,148.26,6.78630552]
[1749204549572,6.7405,148.29,148.26,6.78630552]
[1749204550681,6.7408,148.28,148.26,6.78630552]
[1749204550874,12.556047,148.3,148.26,0.04480552]
[1749204551376,4.77991837,148.28,148.26,0.04480552]
[1749204551571,33.7,148.27,148.26,0.04480552]
[1749204551772,40.4411,148.27,148.26,0.04480552]
[1749204552581,6.7428,148.24,148.21,6.7437]
[1749204552874,24.29048066,148.34,148.21,6.7437]
[1749204553080,4.77991837,148.29,148.22,2.188]
[1749204553275,33.7,148.28,148.22,2.188]
[1749204553679,0.04903605,148.26,148.24,0.04922213]
[1749204553874,0.04903605,148.26,148.25,6.742]
[1749204556077,0.04903605,148.26,148.24,6.79142213]
[1749204556278,6.79053605,148.26,148.24,0.04922213]
[1749204556683,0.04903605,148.26,148.24,6.79162213]
[1749204556885,0.04903605,148.26,148.24,0.04922213]
[1749204557591,0.04903605,148.26,148.24,6.79142213]
[1749204557789,0.04903605,148.26,148.24,0.04922213]
[1749204558687,0.04903605,148.26,148.25,6.742]
[1749204571299,6.29428066,148.34,148.24,4.8291405]
[1749204571493,44.25049275,148.33,148.27,4.77991837]
[1749204571698,2.87890175,148.32,148.27,4.77991837]
[1749204571900,6.739,148.32,148.29,6.7399]
[1749204572301,7.81429658,148.31,148.29,6.7399]
[1749204572603,12.19829006,148.32,148.3,6.7395]
[1749204572797,7.814222,148.31,148.3,6.7395]
[1749204573199,7.74967849,148.31,148.3,6.7395]
[1749204573408,40.5985,148.33,148.31,6.7392]
[1749204573607,11.61177871,148.32,148.29,0.04598666]
[1749204573804,7.7563586,148.31,148.29,0.04598666]
[1749204574000,6.7388,148.32,148.29,0.04598666]
[1749204574199,2.87971632,148.31,148.3,6.7394]
[1749204574395,6.7388,148.32,148.3,6.7394]
[1749204574700,2.879699,148.31,148.3,6.7394]
[1749204575198,2.87986664,148.31,148.3,6.7394]
[1749204575898,6.7388,148.32,148.3,6.7394]
[1749204576598,7.75253952,148.31,148.3,6.7394]
[1749204577007,7.74789364,148.31,148.3,6.7394]
[1749204578003,7.74789364,148.31,148.29,11.56580503]
[1749204578203,7.74789364,148.31,148.29,6.78588666]
[1749204578403,33.86,148.33,148.29,6.78588666]
[1749204578605,11.60536019,148.32,148.3,6.7396]
[1749204578902,2.88183177,148.31,148.3,6.7396]
[1749204579410,6.7389,148.32,148.3,6.7396]
[1749204579712,2.89377051,148.31,148.29,6.78588666]
[1749204579910,6.7389,148.32,148.29,6.78588666]
[1749204580112,2.89377051,148.31,148.29,6.78588666]
[1749204580308,6.7389,148.32,148.3,6.7397]
[1749204580512,2.89370684,148.31,148.29,0.04598666]